Cogmind - Beta 14 @@@ ROGUE MODE // 2024.08.07 @ 18:50:45 Player: lav Result: Self-destructed Performance ------------- Evolutions (1) 500 Regions Visited (2) 400 Robots Destroyed (21) 105 Value Destroyed (342) 342 Prototype IDs (0) 0 Alien Tech Used (0) 0 Bonus (0) 0 TOTAL SCORE: 1347 Bonus ------- None Cogmind --------- Core Integrity 124/400 Matter 274/300 Energy 249/250 System Corruption 0% Temperature Cool (0) Movement Rolling (95) Ox1 Location -9/Materials Parts ------- > --- POWER (1) -------- Ion Engine > --- PROPULSION (4) --- Wheel > --- UTILITY (2) ------ Medium Storage Unit Hacking Suite > --- WEAPON (2) ------- (None) > --- INVENTORY (10) --- Medium Matter Pod (100) Improved Terrain Scanner Terrain Scan Processor Seismic Detector Peak State ------------ > --- POWER ------------ Ion Engine > --- PROPULSION ------- Aluminum Leg Aluminum Leg Aluminum Leg Aluminum Leg > --- UTILITY ---------- Medium Storage Unit Hacking Suite > --- WEAPON ----------- Beam Cannon Light Assault Rifle > --- INVENTORY -------- Ion Engine Wheel Medium Matter Pod Improved Terrain Scanner Terrain Scan Processor Seismic Detector Light Assault Rifle [Rating: 12] Favorites ----------- Power Light Ion Engine Engine Light Ion Engine Propulsion Aluminum Leg Leg Aluminum Leg Wheel Wheel Utility Hacking Suite Device Seismic Detector Storage Medium Storage Unit Hackware Hacking Suite Weapon Light Assault Rifle Energy Gun Small Laser Energy Cannon Beam Cannon Ballistic Gun Light Assault Rifle Launcher Grenade Launcher Build | -11 -10 -9 ------- Run | Yrd Mat Mat Slots Evolved 2 | . . 2 Power . | . . . Propulsion 2 | . . 2 Utility . | . . . Weapon . | . . . Parts Attached 34 | 9 18 7 Power 4 | 1 2 1 Engine 4 | 1 2 1 Core . | . . . Reactor . | . . . Propulsion 12 | 4 4 4 Treads . | . . . Leg 10 | 3 4 3 Wheel 2 | 1 . 1 Hover . | . . . Flight . | . . . Utility 4 | 2 2 . Device 1 | 1 . . Storage 2 | 1 1 . Processor . | . . . Hackware 1 | . 1 . Protection . | . . . Artifact . | . . . Weapon 14 | 2 10 2 Energy Gun 3 | . 3 . Energy Cannon 1 | . 1 . Ballistic Gun 8 | 2 4 2 Ballistic Cannon . | . . . Launcher 2 | . 2 . Special Weapon . | . . . Impact Weapon . | . . . Slashing Weapon . | . . . Piercing Weapon . | . . . Special Melee Weapon . | . . . Unidentified Prototypes . | . . . Parts Lost 10 | . 2 8 Power 1 | . . 1 Propulsion 4 | . . 4 Utility . | . . . Weapon 5 | . 2 3 Highest Loss Streak 8 | . 1 8 To Critical Strikes . | . . . Average Slot Usage (%) 95 | . 99 83 Engine 13 | . 14 10 Leg 28 | . 28 31 Device 2 | . 3 . Storage 13 | . 14 11 Hackware 10 | . 10 11 Energy Gun 4 | . 6 . Energy Cannon 3 | . 1 8 Ballistic Gun 16 | . 18 8 Peak Build Rating 12 | 7 10 12 Average Rating 8 | 4 9 10 On Entrance 5 | . 7 10 Naked Turns . | . . . Heaviest Build 19 | 12 19 19 Greatest Support 40 | 20 20 40 Greatest Overweight (x) 5 | . . 5 Average Overweight (x) . | . . . Largest Inventory Capacity 10 | 8 10 10 Average Capacity 9 | 7 9 10 Most Carried 10 | 4 10 8 Average Carried 6 | 2 7 6 Final Capacity 10 | 8 10 10 Final Carried 9 | 3 9 4 Class Distribution -------------------- 60% | Mutant 39% | Scavenger-Mutant Dominant Class ---------------- Mutant | -10/Materials Scavenger-Mutant | -9/Materials Resources | -11 -10 -9 ----------- Run | Yrd Mat Mat Matter Collected 744 | 318 387 39 Remotely . | . . . Salvage Created 563 | 163 361 39 Parts 45 | 12 32 1 Haulers Intercepted . | . . . Recyclers Shooed 2 | . 1 1 Parts Field Recycled . | . . . Retrieved Matter . | . . . Parts Self-Destructed . | . . . Prevented . | . . . Kills | -11 -10 -9 ------- Run | Yrd Mat Mat Combat Hostiles Destroyed 8 | . 7 1 Guns 7 | . 6 1 AOE 1 | . 1 . Classes Destroyed 8 | 3 5 . Worker 2 | 2 . . Builder 3 | . 3 . Tunneler 3 | 2 1 . Recycler 2 | 1 1 . Operator 2 | . 2 . Watcher 1 | . 1 . Swarmer 2 | . 2 . Grunt 6 | . 5 1 Best Kill Streak 6 | 2 6 1 Combat Bots Only 2 | . 2 1 Max Kills in Single Turn 3 | 1 3 1 Gunslinging . | . . . Exploded 1 | . 1 . Melee . | . . . Uniques/NPCs Destroyed . | . . . Combat | -11 -10 -9 -------- Run | Yrd Mat Mat Hostile Shots Fired 170 | . 77 93 Missed 52 | . 25 27 Damage Taken 1678 | . 695 983 Core 431 | . 155 276 Absorbed by Shields . | . . . Core Remaining (%) 69 | 100 38 . Volleys Fired 74 | 7 40 27 Largest 2 | 2 2 2 Hottest 80 | 40 80 80 Shots Fired 136 | 14 77 45 Gun 110 | 14 69 27 Cannon 22 | . 4 18 Launcher 4 | . 4 . Special . | . . . Kinetic 84 | 14 43 27 Thermal 48 | . 30 18 Explosive 4 | . 4 . Electromagnetic . | . . . Robot Hit Streak 13 | 6 11 13 Robot Miss Streak 6 | 2 6 4 Penetration Max . | . . . Secondary Targets 1 | . 1 . Max Gunslinging Chain 1 | . 1 . Shots Hit Robots 80 | 8 44 28 Core Hits 41 | 7 24 10 Critical Kills . | . . . Critical Parts Destroyed . | . . . Critical Strikes . | . . . Melee Attacks . | . . . Impact . | . . . Slashing . | . . . Piercing . | . . . Sneak Attacks . | . . . Combat Hostiles . | . . . Follow-up Attacks . | . . . Damage Inflicted 1393 | 99 956 338 Guns 685 | 99 422 164 Cannons 227 | . 53 174 Explosions 478 | . 478 . Melee . | . . . Ramming 3 | . 3 . Kinetic 471 | 99 208 164 Thermal 768 | . 594 174 Explosive 151 | . 151 . Electromagnetic . | . . . Impact . | . . . Slashing . | . . . Piercing . | . . . Highest Corruption 3 | . 3 . Average Corruption 2 | . 2 . Corruption Purged . | . . . Corruption Blocked . | . . . Effects 12 | . 12 . Message Errors 3 | . 3 . Matter Fused 2 | . 2 . Heat Flow Errors 2 | . 2 . Energy Discharges 1 | . 1 . Parts Rejected 1 | . 1 . Data Loss (minor) 1 | . 1 . Misfires 1 | . 1 . Alerts 1 | . 1 . Overload Shots . | . . . Overflow Damage 203 | . 203 . Projectiles 6 | . 6 . Explosions 197 | . 197 . Melee . | . . . Knockbacks . | . . . Impact . | . . . Kinetic . | . . . Secondary . | . . . Self-Inflicted Damage 170 | . 170 . Shots 5 | . 5 . Rammed . | . . . Targets Rammed 1 | . 1 . Kicked 1 | . 1 . Crushed . | . . . Highest Temperature 213 | . 127 213 Average Temperature 55 | . 31 84 Received Heat Transfer 600 | . 210 390 Siege Activations . | . . . Robots Corrupted . | . . . Combat Hostiles . | . . . Parts Fried . | . . . Impact Corruptions . | . . . Robots Melted . | . . . Combat Hostiles . | . . . Parts Melted . | . . . Heat Transferred 1180 | . 810 370 Parts Sabotaged . | . . . Parts Stolen . | . . . Parts Stripped . | . . . Power Chain Reactions . | . . . Alert | -11 -10 -9 ------- Run | Yrd Mat Mat Peak Influence 248 | 25 248 111 Initial 89 | . 16 89 Average 85 | 10 106 82 Maximum Alert Level 1 | . 1 . Low Security (%) 91 | 100 86 100 Level 1 8 | . 13 . Level 2 . | . . . Level 3 . | . . . Level 4 . | . . . Level 5 . | . . . High Security . | . . . Max Security . | . . . Squads Dispatched 5 | . 5 . Investigation 3 | . 3 . Extermination . | . . . Reinforcement 2 | . 2 . Assault . | . . . Garrison . | . . . Intercept . | . . . Searches Triggered . | . . . Construction Impeded . | . . . Haulers Reinforced . | . . . Active Scanning Responses . | . . . Cargo Convoy Interrupts . | . . . Stealth | -11 -10 -9 --------- Run | Yrd Mat Mat Distress Signals 1 | . 1 . Communications Jammed . | . . . Distress Signals . | . . . Times Spotted 33 | . 24 9 Peak Tracking Total 8 | . 8 6 Tactical Retreats 3 | . 3 . Traps | -11 -10 -9 ------- Run | Yrd Mat Mat Traps Triggered 2 | . 2 . Indirectly . | . . . Trap Hack Attempts . | . . . Triggered . | . . . Disarmed . | . . . Reprogrammed . | . . . Reused . | . . . Traps Extracted . | . . . Installed . | . . . Triggered . | . . . Machines | -11 -10 -9 ---------- Run | Yrd Mat Mat Machines Disabled 2 | . 2 . Max in Single Turn 2 | . 2 . Machines Repaired . | . . . Machines Dismantled . | . . . Machines Sabotaged . | . . . Overloaded Fab Kills . | . . . Hacking | -11 -10 -9 --------- Run | Yrd Mat Mat Machines Accessed 5 | . 5 . Terminals 3 | . 3 . Fabricators . | . . . Repair Stations . | . . . Recycling Units 2 | . 2 . Scanalyzers . | . . . Garrison Access . | . . . Total Hacks 20 | . 20 . Successful 9 | . 9 . Failed 11 | . 11 . Catastrophic 1 | . 1 . Database Lockouts . | . . . Manual . | . . . Terminals 15 | . 15 . Fabricators . | . . . Repair Stations . | . . . Recycling Units 5 | . 5 . Scanalyzers . | . . . Garrison Access . | . . . Terminal Hacks 4 | . 4 . Record 1 | . 1 . Terminal Index 1 | . 1 . Registered Prototypes 1 | . 1 . Zone Layout 1 | . 1 . Fabricator Hacks . | . . . Repair Station Hacks . | . . . Recycling Unit Hacks 5 | . 5 . Process 1 | . 1 . Report Inventory 2 | . 2 . Retrieve Matter 1 | . 1 . Retrieve Components 1 | . 1 . Scanalyzer . | . . . Garrison Access Hacks . | . . . Unauthorized Hacks . | . . . Terminals . | . . . Fabricators . | . . . Repair Stations . | . . . Recycling Units . | . . . Scanalyzers . | . . . Garrison Access . | . . . Data Cores Recovered . | . . . Used . | . . . Hacking Detections 5 | . 5 . Full Trace Events 3 | . 3 . Feedback Events 1 | . 1 . Corruption 1 | . 1 . Feedback Blocked . | . . . Robot Schematics Acquired . | . . . Robots Built . | . . . Authchips . | . . . Time . | . . . Total Robot Build Rating . | . . . Part Schematics Acquired . | . . . Parts Built . | . . . Authchips . | . . . Time . | . . . Total Part Build Rating . | . . . Parts Repaired . | . . . Time . | . . . Parts Recycled . | . . . Recycled Matter 19 | . 19 . Retrieved Matter 19 | . 19 . Retrieved Components 7 | . 7 . Parts Scanalyzed . | . . . Part Schematics Acquired . | . . . Parts Damaged . | . . . Bothacking | -11 -10 -9 ------------ Run | Yrd Mat Mat Used RIF Installer . | . . . Robots Hacked . | . . . Non-combat . | . . . Combat . | . . . Robot Hacks Applied . | . . . Relay Couplers Released . | . . . Fabnet Peak Effective % . | . . . Robots Rewired . | . . . Allies Hacked . | . . . Hacks Repelled . | . . . Allies | -11 -10 -9 -------- Run | Yrd Mat Mat Total Allies . | . . . Largest Group . | . . . Highest-Rated Group . | . . . Highest-Rated Ally . | . . . Total Orders . | . . . Ally Attacks . | . . . Total Damage . | . . . Kills . | . . . Allies Corrupted . | . . . Allies Melted . | . . . Intel | -11 -10 -9 ------- Run | Yrd Mat Mat Robot Analysis Total . | . . . Derelict Logs Recovered . | . . . Drone Launches . | . . . Drone Recoveries . | . . . Exploration | -11 -10 -9 ------------- Run | Yrd Mat Mat Turns Passed 1192 | 212 777 203 Spaces Moved 709 | 156 490 63 Core 15 | 12 . 3 Treads . | . . . Legs 660 | 133 490 37 Wheels 34 | 11 . 23 Hover . | . . . Flight . | . . . Fastest Speed 50 | 50 120 95 Average Speed 117 | 111 120 116 Slowest Speed 300 | 120 120 300 Overloaded Moves . | . . . Propulsion Burnouts . | . . . Robots Hopped . | . . . Cave-ins Triggered . | . . . Exploration Rate (%) 23 | 7 58 6 Regions Visited 2 Branch Regions . Pre-discovered Areas . | . . . Known Exits Taken . | . . . Unknown Exits Taken 2 | 1 1 . Scrap Searched . | . . . Spaces Dug . | . . . Terrain Destroyed 61 | . 61 . Melee . | . . . Projectile . | . . . AOE 61 | . 61 . Terrain Rammed . | . . . Walls Destroyed . | . . . Machines Disabled . | . . . Actions | -11 -10 -9 --------- Run | Yrd Mat Mat Total 940 | 178 610 152 Wait 95 | 1 40 54 Move 707 | 155 489 63 Hop . | . . . Pick Up 18 | 5 12 1 Fast Attach 7 | 5 1 1 Attach 12 | 3 3 6 Detach 1 | 1 . . Swap 15 | 1 14 . Drop 10 | . 10 . Fire 74 | 7 40 27 Melee . | . . . Ram . | . . . Kick 1 | . 1 . Crush . | . . . Escape Stasis . | . . . Rewire . | . . . Trap . | . . . Miscellaneous . | . . . Route ------- -11/Scrapyard -10/Materials (discovered 2 exits: [*Mat] / [*Min]) -9/Materials History --------- Turn | Location | Event 3 | -11/Scrapyard | Discovered new exit (range 14) 213 | -11/Scrapyard | Entered Materials 329 | -10/Materials | Build established: Mutant 460 | -10/Materials | Discovered new exit (range 15) 713 | -10/Materials | Discovered new exit (range 12) 961 | -10/Materials | Core integrity fell below 50% 990 | -10/Materials | Entered another Materials area 990 | -9/Materials | Evolved 2 slots: Propulsion x2 1012 | -9/Materials | Build established: Scavenger-Mutant 1158 | -9/Materials | Core integrity fell below 50% 1192 | -9/Materials | Lost 8 parts (1p4n3w) 1193 | -9/Materials | Self-destructed Last Messages --------------- 01114_ Aluminum Leg destroyed. 01119_ K-01 Serf collects debris. 01133_ Aluminum Leg severed. 01137_ K-01 Serf collects debris. 01138_ R-06 Scavenger collects Aluminum Leg. 01141_ K-01 Serf collects debris. 01142_ Aluminum Leg destroyed. 01143_ Beam Cannon destroyed. 01144_ K-01 Serf collects debris. 01145_ Ion Engine destroyed. 01145_ Aluminum Leg destroyed. 01149_ Lgt. Assault Rifle destroyed. 01154_ Aluminum Leg destroyed. 01160_ K-01 Serf collects debris. 01161_ Lgt. Assault Rifle destroyed. 01163_ G-47 Trooper destroyed. 01165_ K-01 Serf collects debris. 01170_ Acquired 15 matter. 01181_ Acquired Assault Rifle. 01189_ Assault Rifle severed. Map ----- +----------------------------------------------------+ | ??????????????????????????????????????????????? | | ??????????????????????????????????????????????? | | ??????????????????????????????????????????????? | | ??????????????????????????????????????????????? | | ??????????????????????????????????????????????? | | ??????????????????????????????????????????????? | | ??????????????????????????????????????????????? | | ??????????????????????????????????????????????? | | ??????????????????????????????????????????????? | | ??????????????????????????????????????????????? | | ??????????????????????????????????????????????? | | ??????????????????????????????????????????????? | | ??????????????????????????????????????????????? | | ??????????????????????????????????????????????? | | ??????????????????????????????????????????????? | | ??????????????????????????????????????????????? | | ??????????????????????????????????????????????? | | ????????????????????#?????????????????????????? | | ????????????????????# ????????????????????????? | | ??????????????????###+######??????????????????? | | ??????????????????# g #??????????????????? | | ??????????????????# """g #??????????????????? | | ??????????????????# """ ![ #??????????????????? | | ??????????????????# """ l#??????????????????? | | ??????????????????# #??????????????????? | | ??????????????????# """ @ #??????????????????? | | ??????????????????# """ !#??????????????????? | | ??????????????????# """ #??????????????????? | | ??????????????????# r #??????????????????? | | ?????????????##########g####??????????????????? | | ????????? #########????????????? | | ????????? / #????????????? | | ????????? ## #????????????? | | ??????????#+##########a ## #????????????? | | ?????????????????????# %## #????????????? | | ?????????????????????# ## #?????????#??? | | ????????????????????## ## #???????? ##?? | | ????????????????????# ###/########### #?? | | ????????????????????# #?? | | ????????????????????# !% # #?? | | ????????????????????# = #?????? | | ????????????????????# ###############?????? | | ????????????????????## ##???????????????????? | | ?????????????????????# ?????????????????????? | | ?????????????????????# ?????????????????????? | | ?????????????????????# ?????????????????????? | | ?????????????????????# ??????????????????????? | | ?????????????????????# ??????????????????????? | | ?????????????????????# ??????????????????????? | | ?????????????????????# ??????????????????????? | +----------------------------------------------------+ Best States ------------- Heat Dissipation 28 Energy Generation 10 Energy Capacity 250 Matter Stores 300 Matter Capacity 300 Sight Range 16 Terrain Scan Density 10 Evasion (%) 55 Offensive Hacking 10 Item Schematics ----------------- None Robot Schematics ------------------ None Fabricated ------------ Nothing Alien Tech Used ----------------- None Achievements -------------- None Challenges ------------ None Game ------ Seed FlightCompanionBroadsword Manual? 0 Play Time 00:15:01 Cumulative 10.2 hours Start 2024.08.07 @ 18:37:15 End 2024.08.07 @ 18:50:45 Sessions 1 Manual Loads 0 Difficulty Rogue Special Mode None Game No. 22 Rogue 22 Adventurer 0 Explorer 0 Win Type - Total 0 Types 0/0/0/0/0/0/0/0/0 Lore% 2 Gallery% 14 Achievement% 13 Wizard Run 0 Options --------- Layout 1 ASCII 0 Keyboard 0 Movement Mouse Keybinds 0 Fullscreen 1 Font 32/SmallcapsGlow Map View 50x35 Zoom Use 0% Tactical HUD 1 Map Filters NONE Filters NONE Steam 1 RUN: 9b9c6439-9b3d-4389-b735-234346afdcb7